[Event "Israeli U18-Team-ch 2024"]
[Site "Rishon LeZion"]
[Date "2024.08.01"]
[Round "2.2"]
[White "Sokolovsky, Yahli"]
[Black "Brezis, Ari"]
[Result "1-0"]
[ECO "B31"]
[WhiteElo "2492"]
[BlackElo "2028"]
[Annotator "RC"]
[PlyCount "73"]
[EventDate "2024.08.01"]
[EventType "team-tourn"]
[EventCountry "ISR"]
[SourceTitle "playchess.com"]
[Source "ChessBase"]
[SourceQuality "1"]
[TimeControl "3000+10"]

1. e4 {[%emt 0:00:08]} c5 {[%emt 0:00:33]} 2. Nf3 {[%emt 0:00:07]} Nc6 {[%emt 0:00:04]} 3. Bb5 {[%emt 0:00:08]} g6 {[%emt 0:00:41]} 4. O-O {[%emt 0:00:11]} Bg7 {[%emt 0:00:04]} 5. Re1 {[%emt 0:00:06]} e5 {[%emt 0:01:02]} 6. Bxc6 {[%emt 0:00:06]} dxc6 {[%emt 0:00:19]} 7. d3 {[%emt 0:00:07]} Qc7 {[%emt 0:01:10]} 8. a3 {[%emt 0:02:52]} a5 {[%emt 0:00:44]} 9. Be3 {[%emt 0:00:35]} b6 {[%emt 0:00:24]} 10. Nbd2 {[%emt 0:01:02]} Nf6 {[%emt 0:05:31]} 11. b4 {[%emt 0:02:45]} cxb4 {[%emt 0:04:33]} 12. axb4 {[%emt 0:00:08]} Ng4 {[%emt 0:04:11]} 13. Bg5 {[%emt 0:00:30]} f6 {[%emt 0:00:44]} 14. Bh4 {[%emt 0:00:20]} g5 {[%emt 0:07:57]} 15. Bg3 {[%emt 0:00:15]} h5 {[%emt 0:00:41]} 16. h4 {[%emt 0:01:16]} gxh4 {[%emt 0:03:00]} 17. Nxh4 {[%emt 0:01:21]} Kf7 {[%emt 0:00:48]} 18. Nb3 {[%emt 0:08:15]} a4 {[%emt 0:01:21]} 19. Nd4 {[%emt 0:01:08]} Qd6 {[%emt 0:02:28]} 20. c3 {[%emt 0:00:54]} b5 {[%emt 0:01:07]} 21. Nb3 {[%emt 0:02:46]} Nxf2 {[%emt 0:01:49]} 22. Bxf2 {[%emt 0:03:01]} Bg4 {[%emt 0:00:07]} 23. Nf5 {[%emt 0:00:28]} Qc7 {[%emt 0:04:28]} 24. Qb1 {[%emt 0:01:14]} axb3 {[%emt 0:00:05]} 25. Qxb3+ {[%emt 0:00:17]} Kg6 {[%emt 0:00:02]} 26. Bc5 {[%emt 0:03:44]} Bxf5 {[%emt 0:02:49]} 27. exf5+ {[%emt 0:00:06]} Kh7 {[%emt 0:01:04]} 28. Qd1 {[%emt 0:02:01]} Qf7 {[%emt 0:00:08]} 29. Qf3 {[%emt 0:00:06]} Rhc8 {[%emt 0:02:35]} 30. Rxa8 {[%emt 0:03:02]} Rxa8 {[%emt 0:00:01]} 31. Qxc6 {[%emt 0:00:12]} Ra3 {[%emt 0:01:06]} 32. Qe6 {[%emt 0:04:46]} Qb7 {[%emt 0:00:42]} 33. Qe8 {[%emt 0:00:43]} Rxc3 {[%emt 0:00:26]} 34. Qxh5+ {[%emt 0:00:06]} Kg8 {[%emt 0:00:04]} 35. Qe8+ {[%emt 0:00:29]} Kh7 {[%emt 0:00:03]} 36. Re3 {[%emt 0:00:15]} Rc1+ {[%emt 0:01:53]} 37. Kh2 {[%emt 0:00:10]} 1-0

[Event "Israeli U18-Team-ch 2024"]
[Site "Rishon LeZion"]
[Date "2024.08.01"]
[Round "2.3"]
[White "Zakin, Ilay"]
[Black "Beitner, Yehonatan"]
[Result "1-0"]
[ECO "B43"]
[WhiteElo "2306"]
[BlackElo "1929"]
[Annotator "RC"]
[PlyCount "37"]
[EventDate "2024.08.01"]
[EventType "team-tourn"]
[EventCountry "ISR"]
[SourceTitle "playchess.com"]
[Source "ChessBase"]
[SourceQuality "1"]
[TimeControl "3000+10"]

1. e4 {[%emt 0:00:02]} c5 {[%emt 0:00:07]} 2. Nf3 {[%emt 0:00:14]} e6 {[%emt 0:00:09]} 3. d4 {[%emt 0:00:04]} cxd4 {[%emt 0:00:06]} 4. Nxd4 {[%emt 0:00:03]} a6 {[%emt 0:00:13]} 5. Nc3 {[%emt 0:00:06]} b5 {[%emt 0:00:05]} 6. g3 {[%emt 0:01:45]} b4 {[%emt 0:00:13]} 7. Na4 {[%emt 0:01:29]} Bb7 {[%emt 0:00:06]} 8. Bg2 {[%emt 0:00:12]} Nf6 {[%emt 0:00:31]} 9. O-O {[%emt 0:00:15]} Nxe4 {[%emt 0:08:25]} 10. Re1 {[%emt 0:02:38]} d5 {[%emt 0:00:07]} 11. c4 {[%emt 0:01:34]} bxc3 {[%emt 0:00:09]} 12. bxc3 {[%emt 0:02:58]} Nd7 {[%emt 0:06:36]} 13. Rb1 {[%emt 0:41:00]} Qc7 {[%emt 0:02:56]} 14. c4 {[%emt 0:00:00]} Qxc4 {[%emt 0:19:38]} 15. Rxb7 {[%emt 0:00:00]} Nec5 {[%emt 0:01:20]} 16. Nxc5 {[%emt 0:00:00]} Nxc5 {[%emt 0:00:37]} 17. Rc7 {[%emt 0:00:00]} Qxa2 {[%emt 0:05:21]} 18. Nxe6 {[%emt 0:00:00]} fxe6 {[%emt 0:00:30]} 19. Bxd5 {[%emt 0:00:00]} 1-0

[Event "Israeli U18-Team-ch 2024"]
[Site "Rishon LeZion"]
[Date "2024.08.01"]
[Round "2.4"]
[White "David, Idan"]
[Black "Tashkinova, Sofiia"]
[Result "1-0"]
[ECO "D02"]
[WhiteElo "1873"]
[BlackElo "2127"]
[Annotator "RC"]
[PlyCount "103"]
[EventDate "2024.08.01"]
[EventType "team-tourn"]
[EventCountry "ISR"]
[SourceTitle "playchess.com"]
[Source "ChessBase"]
[SourceQuality "1"]
[TimeControl "3000+10"]

1. d4 {[%emt 0:00:04]} Nf6 {[%emt 0:00:11]} 2. Bf4 {[%emt 0:00:02]} d5 {[%emt 0:00:15]} 3. e3 {[%emt 0:00:02]} e6 {[%emt 0:00:07]} 4. Nd2 {[%emt 0:00:12]} c5 {[%emt 0:00:19]} 5. c3 {[%emt 0:00:02]} Nc6 {[%emt 0:00:11]} 6. Ngf3 {[%emt 0:00:10]} Qb6 {[%emt 0:00:32]} 7. Qb3 {[%emt 0:00:30]} Qxb3 {[%emt 0:01:25]} 8. axb3 {[%emt 0:00:34]} Nh5 {[%emt 0:03:05]} 9. Bg3 {[%emt 0:02:10]} Nxg3 {[%emt 0:00:27]} 10. hxg3 {[%emt 0:00:02]} cxd4 {[%emt 0:01:07]} 11. exd4 {[%emt 0:00:04]} a5 {[%emt 0:02:10]} 12. Bb5 {[%emt 0:04:10]} Bd7 {[%emt 0:42:21]} 13. O-O {[%emt 0:02:22]} Bd6 {[%emt 0:00:00]} 14. b4 {[%emt 0:00:28]} Bc7 {[%emt 0:00:00]} 15. Nb3 {[%emt 0:01:19]} b6 {[%emt 0:00:00]} 16. bxa5 {[%emt 0:00:56]} Nxa5 {[%emt 0:00:00]} 17. Bxd7+ {[%emt 0:00:46]} Kxd7 {[%emt 0:00:00]} 18. Nbd2 {[%emt 0:03:17]} b5 {[%emt 0:00:00]} 19. b4 {[%emt 0:01:02]} Nc4 {[%emt 0:00:00]} 20. Nb3 {[%emt 0:02:52]} Ke7 {[%emt 0:00:00]} 21. Nc5 {[%emt 0:01:11]} f6 {[%emt 0:00:00]} 22. Rfe1 {[%emt 0:01:26]} e5 {[%emt 0:00:00]} 23. dxe5 {[%emt 0:02:35]} fxe5 {[%emt 0:00:00]} 24. Rad1 {[%emt 0:00:56]} Rhd8 {[%emt 0:00:00]} 25. Nd4 {[%emt 0:00:31]} Kf6 {[%emt 0:00:00]} 26. Nde6 {[%emt 0:02:07]} Rdc8 {[%emt 0:00:00]} 27. Nxc7 {[%emt 0:01:26]} Rxc7 {[%emt 0:00:00]} 28. Rxd5 {[%emt 0:00:22]} Ra3 {[%emt 0:00:00]} 29. Ne4+ {[%emt 0:00:52]} Kf5 {[%emt 0:00:26]} 30. Rxb5 {[%emt 0:00:42]} Nb2 {[%emt 0:01:34]} 31. Rd5 {[%emt 0:01:08]} Nc4 {[%emt 0:00:28]} 32. Rd3 {[%emt 0:06:53]} h6 {[%emt 0:00:24]} 33. Nc5 {[%emt 0:01:39]} Re7 {[%emt 0:00:10]} 34. Rf3+ {[%emt 0:02:11]} Kg6 {[%emt 0:00:02]} 35. Ne4 {[%emt 0:01:39]} Rd7 {[%emt 0:00:13]} 36. g4 {[%emt 0:00:56]} Rda7 {[%emt 0:00:26]} 37. Rd1 {[%emt 0:00:51]} Ra1 {[%emt 0:00:03]} 38. Rxa1 {[%emt 0:00:16]} Rxa1+ {[%emt 0:00:01]} 39. Kh2 {[%emt 0:00:07]} Re1 {[%emt 0:00:07]} 40. Nc5 {[%emt 0:00:53]} Re2 {[%emt 0:00:06]} 41. Kg3 {[%emt 0:00:48]} Nd2 {[%emt 0:00:23]} 42. Re3 {[%emt 0:01:17]} Nf1+ {[%emt 0:00:24]} 43. Kf3 {[%emt 0:00:00]} Rc2 {[%emt 0:00:04]} 44. Re1 {[%emt 0:01:57]} Nd2+ {[%emt 0:00:13]} 45. Ke3 {[%emt 0:00:08]} Rb2 {[%emt 0:00:10]} 46. Kd3 {[%emt 0:00:18]} e4+ {[%emt 0:00:08]} 47. Nxe4 {[%emt 0:00:12]} Nxe4 {[%emt 0:00:01]} 48. Rxe4 {[%emt 0:00:10]} Rxf2 {[%emt 0:00:02]} 49. b5 {[%emt 0:00:26]} Rxg2 {[%emt 0:00:08]} 50. b6 {[%emt 0:00:00]} Rb2 {[%emt 0:00:02]} 51. Rb4 {[%emt 0:00:01]} Rg2 {[%emt 0:00:10]} 52. b7 {[%emt 0:00:02]} 1-0

[Event "Israeli U18-Team-ch 2024"]
[Site "Rishon LeZion"]
[Date "2024.08.01"]
[Round "2.6"]
[White "Dezent, Eyal"]
[Black "Tsafrir, Itay"]
[Result "1-0"]
[ECO "A45"]
[WhiteElo "2076"]
[BlackElo "1805"]
[Annotator "RC"]
[PlyCount "85"]
[EventDate "2024.08.01"]
[EventType "team-tourn"]
[EventCountry "ISR"]
[SourceTitle "playchess.com"]
[Source "ChessBase"]
[SourceQuality "1"]
[TimeControl "3000+10"]

1. d4 {[%emt 0:00:05]} Nf6 {[%emt 0:00:14]} 2. Bg5 {[%emt 0:00:19]} c5 {[%emt 0:01:05]} 3. d5 {[%emt 0:00:06]} Qb6 {[%emt 0:00:20]} 4. Nc3 {[%emt 0:00:30]} Qxb2 {[%emt 0:00:26]} 5. Bd2 {[%emt 0:00:12]} Qb6 {[%emt 0:00:20]} 6. e4 {[%emt 0:00:10]} d6 {[%emt 0:00:13]} 7. f4 {[%emt 0:00:30]} e6 {[%emt 0:03:28]} 8. Bc4 {[%emt 0:11:08]} exd5 {[%emt 0:00:50]} 9. Nxd5 {[%emt 0:08:36]} Nxd5 {[%emt 0:00:11]} 10. exd5 {[%emt 0:00:10]} Be7 {[%emt 0:02:02]} 11. Qe2 {[%emt 0:04:02]} Qd8 {[%emt 0:02:01]} 12. Nf3 {[%emt 0:03:00]} O-O {[%emt 0:00:48]} 13. O-O {[%emt 0:00:47]} Bf5 {[%emt 0:01:25]} 14. Bd3 {[%emt 0:02:22]} Bxd3 {[%emt 0:02:11]} 15. Qxd3 {[%emt 0:00:01]} Nd7 {[%emt 0:00:29]} 16. Ng5 {[%emt 0:01:18]} Nf6 {[%emt 0:04:55]} 17. Bc3 {[%emt 0:00:49]} h6 {[%emt 0:00:17]} 18. Bxf6 {[%emt 0:02:33]} hxg5 {[%emt 0:00:09]} 19. Bxe7 {[%emt 0:01:38]} Qxe7 {[%emt 0:01:10]} 20. Rae1 {[%emt 0:00:07]} Qf6 {[%emt 0:00:52]} 21. fxg5 {[%emt 0:00:06]} Qd4+ {[%emt 0:00:51]} 22. Qxd4 {[%emt 0:15:21]} cxd4 {[%emt 0:00:06]} 23. Re7 {[%emt 0:00:00]} Rac8 {[%emt 0:00:20]} 24. Rf2 {[%emt 0:00:00]} Rfe8 {[%emt 0:01:30]} 25. Rxe8+ {[%emt 0:00:00]} Rxe8 {[%emt 0:00:10]} 26. Rd2 {[%emt 0:00:00]} Re1+ {[%emt 0:01:04]} 27. Kf2 {[%emt 0:00:00]} Ra1 {[%emt 0:00:05]} 28. Rxd4 {[%emt 0:00:00]} Rxa2 {[%emt 0:00:06]} 29. Rd2 {[%emt 0:00:00]} a5 {[%emt 0:00:58]} 30. Ke3 {[%emt 0:00:00]} b5 {[%emt 0:00:21]} 31. c4 {[%emt 0:00:00]} Ra3+ {[%emt 0:09:16]} 32. Rd3 {[%emt 0:00:00]} Ra2 {[%emt 0:00:18]} 33. c5 {[%emt 0:00:35]} Rc2 {[%emt 0:00:07]} 34. cxd6 {[%emt 0:00:08]} Kf8 {[%emt 0:00:07]} 35. Kd4 {[%emt 0:00:31]} Rc4+ {[%emt 0:00:51]} 36. Ke5 {[%emt 0:00:20]} Ke8 {[%emt 0:00:36]} 37. Rf3 {[%emt 0:00:12]} a4 {[%emt 0:00:29]} 38. d7+ {[%emt 0:00:14]} Kxd7 {[%emt 0:00:34]} 39. Rxf7+ {[%emt 0:00:01]} Kd8 {[%emt 0:01:12]} 40. Ra7 {[%emt 0:00:31]} Rg4 {[%emt 0:01:01]} 41. h4 {[%emt 0:00:22]} Rxh4 {[%emt 0:00:57]} 42. Kd6 {[%emt 0:00:01]} Ke8 {[%emt 0:00:17]} 43. g6 {[%emt 0:00:04]} 1-0

[Event "Israeli U18-Team-ch 2024"]
[Site "Rishon LeZion"]
[Date "2024.08.01"]
[Round "2.7"]
[White "Friedlich, Eyal"]
[Black "Gilor, Amit"]
[Result "0-1"]
[ECO "A05"]
[WhiteElo "1851"]
[BlackElo "1905"]
[Annotator "RC"]
[PlyCount "68"]
[EventDate "2024.08.01"]
[EventType "team-tourn"]
[EventCountry "ISR"]
[SourceTitle "playchess.com"]
[Source "ChessBase"]
[SourceQuality "1"]
[TimeControl "3000+10"]

1. Nf3 {[%emt 0:00:03]} g6 {[%emt 0:00:10]} 2. g3 {[%emt 0:00:09]} Bg7 {[%emt 0:00:05]} 3. Bg2 {[%emt 0:00:33]} Nf6 {[%emt 0:00:09]} 4. b3 {[%emt 0:01:19]} O-O {[%emt 0:01:55]} 5. Bb2 {[%emt 0:00:03]} d6 {[%emt 0:02:10]} 6. c4 {[%emt 0:01:52]} c5 {[%emt 0:01:39]} 7. O-O {[%emt 0:01:47]} e5 {[%emt 0:00:44]} 8. d3 {[%emt 0:01:05]} Ne8 {[%emt 0:02:55]} 9. Nc3 {[%emt 0:02:17]} f5 {[%emt 0:01:13]} 10. Nd2 {[%emt 0:02:38]} Nf6 {[%emt 0:03:27]} 11. a3 {[%emt 0:01:27]} a5 {[%emt 0:02:57]} 12. Nb5 {[%emt 0:08:00]} Nc6 {[%emt 0:03:02]} 13. Rb1 {[%emt 0:00:47]} Be6 {[%emt 0:02:12]} 14. Bc3 {[%emt 0:04:14]} d5 {[%emt 0:02:08]} 15. e3 {[%emt 0:00:01]} d4 {[%emt 0:04:26]} 16. exd4 {[%emt 0:00:04]} exd4 {[%emt 0:00:32]} 17. Ba1 {[%emt 0:00:24]} Re8 {[%emt 0:00:54]} 18. b4 {[%emt 0:04:08]} axb4 {[%emt 0:00:51]} 19. axb4 {[%emt 0:00:04]} Nxb4 {[%emt 0:01:01]} 20. Nb3 {[%emt 0:00:37]} Qe7 {[%emt 0:01:00]} 21. Re1 {[%emt 0:01:27]} Nc6 {[%emt 0:01:41]} 22. Bd5 {[%emt 0:04:24]} Nd8 {[%emt 0:00:56]} 23. Bxd4 {[%emt 0:01:26]} cxd4 {[%emt 0:02:00]} 24. N3xd4 {[%emt 0:00:09]} Qd7 {[%emt 0:01:23]} 25. Nxe6 {[%emt 0:01:06]} Nxe6 {[%emt 0:00:06]} 26. Nd4 {[%emt 0:01:09]} Nxd5 {[%emt 0:00:26]} 27. Nxe6 {[%emt 0:00:51]} Rxe6 {[%emt 0:00:26]} 28. cxd5 {[%emt 0:00:11]} Rxe1+ {[%emt 0:00:32]} 29. Qxe1 {[%emt 0:00:04]} Qxd5 {[%emt 0:00:59]} 30. Qe7 {[%emt 0:00:47]} b5 {[%emt 0:00:28]} 31. Qe3 {[%emt 0:00:55]} Bd4 {[%emt 0:01:06]} 32. Qe2 {[%emt 0:00:41]} Rb8 {[%emt 0:00:44]} 33. Rb4 {[%emt 0:00:23]} Qc5 {[%emt 0:00:46]} 34. Qe1 {[%emt 0:00:52]} Bxf2+ {[%emt 0:00:48]} 0-1

[Event "Israeli U18-Team-ch 2024"]
[Site "Rishon LeZion"]
[Date "2024.08.01"]
[Round "2.8"]
[White "Magen, Ofek"]
[Black "Hochman, Gur"]
[Result "1/2-1/2"]
[ECO "A51"]
[WhiteElo "1911"]
[BlackElo "1631"]
[Annotator "RC"]
[PlyCount "92"]
[EventDate "2024.08.01"]
[EventType "team-tourn"]
[EventCountry "ISR"]
[SourceTitle "playchess.com"]
[Source "ChessBase"]
[SourceQuality "1"]
[TimeControl "3000+10"]

1. d4 {[%emt 0:00:05]} Nf6 {[%emt 0:00:04]} 2. c4 {[%emt 0:00:03]} e5 {[%emt 0:00:07]} 3. d5 {[%emt 0:01:07]} Bc5 {[%emt 0:00:25]} 4. Nc3 {[%emt 0:00:13]} d6 {[%emt 0:00:37]} 5. e3 {[%emt 0:00:29]} O-O {[%emt 0:00:27]} 6. Bd2 {[%emt 0:01:49]} Bf5 {[%emt 0:02:13]} 7. Be2 {[%emt 0:01:03]} Qd7 {[%emt 0:01:24]} 8. h3 {[%emt 0:00:30]} Ne4 {[%emt 0:02:52]} 9. Nxe4 {[%emt 0:01:48]} Bxe4 {[%emt 0:00:13]} 10. Nf3 {[%emt 0:00:06]} Bxf3 {[%emt 0:01:13]} 11. Bxf3 {[%emt 0:00:12]} f5 {[%emt 0:01:02]} 12. b4 {[%emt 0:00:16]} Bb6 {[%emt 0:00:17]} 13. Rc1 {[%emt 0:00:34]} a6 {[%emt 0:01:12]} 14. c5 {[%emt 0:00:09]} dxc5 {[%emt 0:00:14]} 15. bxc5 {[%emt 0:00:06]} Ba7 {[%emt 0:00:41]} 16. Qb3 {[%emt 0:00:15]} Qb5 {[%emt 0:02:02]} 17. Bb4 {[%emt 0:11:33]} a5 {[%emt 0:01:29]} 18. c6 {[%emt 0:00:31]} a4 {[%emt 0:05:28]} 19. Qc4 {[%emt 0:01:21]} Qxc4 {[%emt 0:01:42]} 20. Rxc4 {[%emt 0:00:02]} b5 {[%emt 0:00:34]} 21. Bxf8 {[%emt 0:09:33]} bxc4 {[%emt 0:00:16]} 22. Ba3 {[%emt 0:00:09]} Na6 {[%emt 0:01:44]} 23. Be2 {[%emt 0:00:21]} Bc5 {[%emt 0:00:59]} 24. Bxc5 {[%emt 0:01:34]} Nxc5 {[%emt 0:00:10]} 25. Bxc4 {[%emt 0:00:05]} Kf8 {[%emt 0:00:27]} 26. Kd2 {[%emt 0:01:07]} Rb8 {[%emt 0:01:10]} 27. Kc2 {[%emt 0:01:30]} Ke7 {[%emt 0:01:15]} 28. g4 {[%emt 0:00:24]} a3 {[%emt 0:02:28]} 29. Bb3 {[%emt 0:00:44]} f4 {[%emt 0:03:00]} 30. exf4 {[%emt 0:00:43]} exf4 {[%emt 0:00:19]} 31. Rd1 {[%emt 0:00:16]} Nxb3 {[%emt 0:01:21]} 32. axb3 {[%emt 0:00:06]} Kd6 {[%emt 0:00:25]} 33. Kc3 {[%emt 0:04:14]} Rb5 {[%emt 0:01:10]} 34. Rd4 {[%emt 0:02:48]} a2 {[%emt 0:01:30]} 35. Ra4 {[%emt 0:00:04]} Rxd5 {[%emt 0:00:19]} 36. Rxa2 {[%emt 0:00:09]} Rc5+ {[%emt 0:00:14]} 37. Kd4 {[%emt 0:00:30]} Rxc6 {[%emt 0:00:37]} 38. Ke4 {[%emt 0:01:02]} Rb6 {[%emt 0:01:33]} 39. Rd2+ {[%emt 0:01:24]} Ke6 {[%emt 0:00:20]} 40. Rc2 {[%emt 0:00:36]} Kd6 {[%emt 0:01:41]} 41. Rc3 {[%emt 0:00:35]} Rb4+ {[%emt 0:01:15]} 42. Kf5 {[%emt 0:00:09]} c5 {[%emt 0:00:50]} 43. f3 {[%emt 0:00:20]} Kd5 {[%emt 0:00:51]} 44. Rd3+ {[%emt 0:00:27]} Rd4 {[%emt 0:01:28]} 45. Rc3 {[%emt 0:00:01]} Rb4 {[%emt 0:00:20]} 46. Rd3+ {[%emt 0:00:17]} Rd4 {[%emt 0:02:33]} 1/2-1/2

[Event "Israeli U18-Team-ch 2024"]
[Site "Rishon LeZion"]
[Date "2024.08.01"]
[Round "2.10"]
[White "Gadasi, Noam"]
[Black "Kochavi, Dana"]
[Result "1-0"]
[ECO "B13"]
[WhiteElo "1808"]
[BlackElo "2135"]
[Annotator "RC"]
[PlyCount "111"]
[EventDate "2024.08.01"]
[EventType "team-tourn"]
[EventCountry "ISR"]
[SourceTitle "playchess.com"]
[Source "ChessBase"]
[SourceQuality "1"]
[TimeControl "3000+10"]

1. e4 {[%emt 0:00:03]} c6 {[%emt 0:00:04]} 2. d4 {[%emt 0:00:08]} d5 {[%emt 0:00:03]} 3. exd5 {[%emt 0:00:04]} cxd5 {[%emt 0:00:04]} 4. Bd3 {[%emt 0:00:06]} Nc6 {[%emt 0:00:04]} 5. c3 {[%emt 0:00:05]} Qc7 {[%emt 0:00:03]} 6. h3 {[%emt 0:00:25]} Nf6 {[%emt 0:00:37]} 7. Nf3 {[%emt 0:00:09]} g6 {[%emt 0:00:13]} 8. O-O {[%emt 0:01:01]} Bg7 {[%emt 0:00:04]} 9. Re1 {[%emt 0:00:47]} O-O {[%emt 0:00:08]} 10. Nbd2 {[%emt 0:02:26]} Bd7 {[%emt 0:04:53]} 11. Nb3 {[%emt 0:05:37]} Rad8 {[%emt 0:10:21]} 12. Bg5 {[%emt 0:06:03]} Bc8 {[%emt 0:06:44]} 13. Ne5 {[%emt 0:06:05]} Nxe5 {[%emt 0:06:58]} 14. Rxe5 {[%emt 0:01:39]} Rfe8 {[%emt 0:01:22]} 15. Re2 {[%emt 0:03:33]} h6 {[%emt 0:05:38]} 16. Be3 {[%emt 0:07:14]} Nh5 {[%emt 0:01:10]} 17. Qd2 {[%emt 0:00:26]} g5 {[%emt 0:00:11]} 18. h4 {[%emt 0:04:21]} Nf4 {[%emt 0:01:15]} 19. Bxf4 {[%emt 0:00:27]} gxf4 {[%emt 0:00:04]} 20. Bc2 {[%emt 0:03:33]} b6 {[%emt 0:01:00]} 21. Qd3 {[%emt 0:02:30]} Bg4 {[%emt 0:00:31]} 22. f3 {[%emt 0:02:25]} Bh5 {[%emt 0:00:10]} 23. Rae1 {[%emt 0:00:33]} e6 {[%emt 0:03:32]} 24. Qh7+ {[%emt 0:02:00]} Kf8 {[%emt 0:00:04]} 25. Re5 {[%emt 0:00:08]} Bg6 {[%emt 0:01:55]} 26. Bxg6 {[%emt 0:00:02]} fxg6 {[%emt 0:00:04]} 27. Rxe6 {[%emt 0:00:19]} Qf7 {[%emt 0:00:10]} 28. Rxe8+ {[%emt 0:01:00]} Rxe8 {[%emt 0:00:05]} 29. Rxe8+ {[%emt 0:00:01]} Qxe8 {[%emt 0:00:06]} 30. Kh2 {[%emt 0:00:20]} h5 {[%emt 0:07:37]} 31. Nc1 {[%emt 0:00:29]} Kf7 {[%emt 0:00:00]} 32. Nd3 {[%emt 0:00:09]} Kf6 {[%emt 0:00:00]} 33. Nxf4 {[%emt 0:00:02]} Qf7 {[%emt 0:00:00]} 34. g4 {[%emt 0:00:52]} hxg4 {[%emt 0:00:00]} 35. fxg4 {[%emt 0:00:01]} Ke7 {[%emt 0:00:10]} 36. Nxg6+ {[%emt 0:00:11]} Kd6 {[%emt 0:00:01]} 37. Kg2 {[%emt 0:00:15]} Qe6 {[%emt 0:00:29]} 38. Ne5 {[%emt 0:00:19]} Bxe5 {[%emt 0:00:02]} 39. dxe5+ {[%emt 0:00:01]} Qxe5 {[%emt 0:00:01]} 40. Qh6+ {[%emt 0:00:04]} Kc7 {[%emt 0:00:08]} 41. Qh7+ {[%emt 0:00:09]} Kc6 {[%emt 0:00:06]} 42. Qf5 {[%emt 0:00:09]} Qe2+ {[%emt 0:00:02]} 43. Kg3 {[%emt 0:00:03]} Qe3+ {[%emt 0:00:01]} 44. Qf3 {[%emt 0:00:07]} Qe5+ {[%emt 0:00:01]} 45. Kg2 {[%emt 0:00:04]} b5 {[%emt 0:00:29]} 46. g5 {[%emt 0:00:00]} Qe1 {[%emt 0:00:09]} 47. Kh3 {[%emt 0:00:20]} Qe6+ {[%emt 0:00:04]} 48. Kg3 {[%emt 0:00:06]} Qe1+ {[%emt 0:00:02]} 49. Kg4 {[%emt 0:00:04]} Qe6+ {[%emt 0:00:13]} 50. Kh5 {[%emt 0:00:19]} Qe8+ {[%emt 0:00:11]} 51. g6 {[%emt 0:00:03]} Qh8+ {[%emt 0:00:01]} 52. Kg5 {[%emt 0:00:03]} Qe5+ {[%emt 0:00:01]} 53. Qf5 {[%emt 0:00:01]} Qe3+ {[%emt 0:00:02]} 54. Kh5 {[%emt 0:00:04]} Qe8 {[%emt 0:00:06]} 55. Qf6+ {[%emt 0:00:04]} Kc5 {[%emt 0:00:06]} 56. b4+ {[%emt 0:00:11]} 1-0

[Event "Israeli U18-Team-ch 2024"]
[Site "Rishon LeZion"]
[Date "2024.08.01"]
[Round "2.11"]
[White "Duchan, Yoav"]
[Black "Gilad, Tomer"]
[Result "1-0"]
[ECO "A00"]
[WhiteElo "2008"]
[BlackElo "1826"]
[Annotator "RC"]
[PlyCount "49"]
[EventDate "2024.08.01"]
[EventType "team-tourn"]
[EventCountry "ISR"]
[SourceTitle "playchess.com"]
[Source "ChessBase"]
[SourceQuality "1"]
[TimeControl "3000+10"]

1. g3 {[%emt 0:00:14]} g6 {[%emt 0:00:20]} 2. Bg2 {[%emt 0:00:05]} Bg7 {[%emt 0:00:03]} 3. d3 {[%emt 0:00:08]} e5 {[%emt 0:00:35]} 4. Nc3 {[%emt 0:00:05]} Ne7 {[%emt 0:00:32]} 5. Bd2 {[%emt 0:00:14]} d5 {[%emt 0:01:51]} 6. e4 {[%emt 0:00:53]} c6 {[%emt 0:03:27]} 7. Nf3 {[%emt 0:00:52]} O-O {[%emt 0:00:35]} 8. Qc1 {[%emt 0:00:25]} f5 {[%emt 0:04:53]} 9. h3 {[%emt 0:05:09]} fxe4 {[%emt 0:02:05]} 10. dxe4 {[%emt 0:00:12]} d4 {[%emt 0:00:55]} 11. Ne2 {[%emt 0:01:01]} Be6 {[%emt 0:03:02]} 12. O-O {[%emt 0:01:11]} d3 {[%emt 0:06:22]} 13. Nc3 {[%emt 0:09:13]} dxc2 {[%emt 0:00:11]} 14. Qxc2 {[%emt 0:00:32]} Nd7 {[%emt 0:09:05]} 15. Ng5 {[%emt 0:01:48]} Bc4 {[%emt 0:00:58]} 16. Rfd1 {[%emt 0:00:16]} Kh8 {[%emt 0:04:42]} 17. Be3 {[%emt 0:03:03]} h6 {[%emt 0:00:34]} 18. Nf3 {[%emt 0:00:39]} Be6 {[%emt 0:00:50]} 19. Qd2 {[%emt 0:01:49]} Kh7 {[%emt 0:00:59]} 20. Qd6 {[%emt 0:03:09]} Rf6 {[%emt 0:00:59]} 21. Bg5 {[%emt 0:01:06]} hxg5 {[%emt 0:02:27]} 22. Nxg5+ {[%emt 0:00:16]} Kh8 {[%emt 0:00:13]} 23. Nxe6 {[%emt 0:00:22]} Qb6 {[%emt 0:00:17]} 24. Qxe7 {[%emt 0:00:42]} Qxf2+ {[%emt 0:02:07]} 25. Kh2 {[%emt 0:00:29]} 1-0